[Event "*** Titled Tuesday Blitz"]
[Site "Chess.com"]
[Date "2020.04.21"]
[Round "1"]
[White "RaunakSadhwani2005"]
[Black "InitiatingASC"]
[Result "1-0"]
[WhiteElo "2784"]
[BlackElo "2408"]
[TimeControl "180+1"]
[EndTime "10:08:18 PDT"]
[Termination "RaunakSadhwani2005 won on time"]

1. e4 {[%clk 0:03:00.5]} 1... c5 {[%clk 0:02:59.5]} 2. Nc3 {[%clk 0:02:59.8]}
2... g6 {[%clk 0:02:58.1]} 3. Nge2 {[%clk 0:02:54.5]} 3... Bg7 {[%clk
0:02:58.1]} 4. g3 {[%clk 0:02:55]} 4... Nc6 {[%clk 0:02:56.5]} 5. Bg2 {[%clk
0:02:55.4]} 5... e6 {[%clk 0:02:51.8]} 6. O-O {[%clk 0:02:54.9]} 6... Nge7
{[%clk 0:02:51.5]} 7. d4 {[%clk 0:02:51.8]} 7... cxd4 {[%clk 0:02:50.9]} 8. Nb5
{[%clk 0:02:51.6]} 8... d6 {[%clk 0:02:48.7]} 9. Nbxd4 {[%clk 0:02:51.3]} 9...
Nxd4 {[%clk 0:02:48.3]} 10. Nxd4 {[%clk 0:02:52.2]} 10... Nc6 {[%clk 0:02:47.4]}
11. Be3 {[%clk 0:02:51.5]} 11... O-O {[%clk 0:02:38.9]} 12. Qd2 {[%clk
0:02:51.2]} 12... Ne5 {[%clk 0:02:28.9]} 13. Qe2 {[%clk 0:02:45.8]} 13... a6
{[%clk 0:02:20.5]} 14. a4 {[%clk 0:02:12.8]} 14... Qc7 {[%clk 0:02:14]} 15. Rad1
{[%clk 0:02:06.5]} 15... Bd7 {[%clk 0:02:03.9]} 16. b3 {[%clk 0:02:06.8]} 16...
Rac8 {[%clk 0:01:53.3]} 17. c4 {[%clk 0:02:04.2]} 17... Nc6 {[%clk 0:01:36.5]}
18. Rd2 {[%clk 0:01:52.6]} 18... Nxd4 {[%clk 0:01:21.6]} 19. Bxd4 {[%clk
0:01:53]} 19... Bxd4 {[%clk 0:01:01.4]} 20. Rxd4 {[%clk 0:01:53.9]} 20... Qb6
{[%clk 0:01:01.8]} 21. Rd3 {[%clk 0:01:50]} 21... Rfd8 {[%clk 0:00:54.2]} 22.
Rfd1 {[%clk 0:01:46.8]} 22... Be8 {[%clk 0:00:50.1]} 23. Qd2 {[%clk 0:01:39.2]}
23... h5 {[%clk 0:00:40.6]} 24. e5 {[%clk 0:01:35.2]} 24... Bc6 {[%clk
0:00:31.6]} 25. exd6 {[%clk 0:01:24.3]} 25... Bxg2 {[%clk 0:00:30.7]} 26. Kxg2
{[%clk 0:01:25.2]} 26... Rd7 {[%clk 0:00:29.3]} 27. h4 {[%clk 0:01:21.8]} 27...
a5 {[%clk 0:00:23.8]} 28. Qf4 {[%clk 0:01:10.9]} 28... Rc5 {[%clk 0:00:19.5]}
29. Qe3 {[%clk 0:00:57.5]} 29... Qc6+ {[%clk 0:00:18.8]} 30. Kg1 {[%clk
0:00:57.4]} 30... b6 {[%clk 0:00:16.8]} 31. Rd4 {[%clk 0:00:56.2]} 31... Rf5
{[%clk 0:00:15.8]} 32. Qe4 {[%clk 0:00:37.3]} 32... Qxe4 {[%clk 0:00:12.3]} 33.
Rxe4 {[%clk 0:00:38.2]} 33... Rf3 {[%clk 0:00:12.3]} 34. Re3 {[%clk 0:00:38.5]}
34... Rxe3 {[%clk 0:00:07.6]} 35. fxe3 {[%clk 0:00:39.4]} 35... e5 {[%clk
0:00:08.1]} 36. Rd5 {[%clk 0:00:25.6]} 36... f6 {[%clk 0:00:07.9]} 37. c5 {[%clk
0:00:24.3]} 37... bxc5 {[%clk 0:00:07.6]} 38. Rxc5 {[%clk 0:00:25.2]} 38... Rxd6
{[%clk 0:00:08.2]} 39. Rxa5 {[%clk 0:00:25.7]} 39... Rd3 {[%clk 0:00:08.8]} 40.
Rb5 {[%clk 0:00:25.8]} 40... Rxe3 {[%clk 0:00:09]} 41. a5 {[%clk 0:00:26.4]}
41... Rxg3+ {[%clk 0:00:05.3]} 42. Kf2 {[%clk 0:00:22.5]} 42... Rh3 {[%clk
0:00:05.4]} 43. a6 {[%clk 0:00:19.8]} 43... Rh2+ {[%clk 0:00:05.4]} 44. Kg1
{[%clk 0:00:18.9]} 44... Ra2 {[%clk 0:00:06.3]} 45. Rb6 {[%clk 0:00:18.7]} 45...
Kf7 {[%clk 0:00:04.3]} 46. b4 {[%clk 0:00:16.8]} 46... e4 {[%clk 0:00:04.4]} 47.
b5 {[%clk 0:00:17.2]} 47... e3 {[%clk 0:00:04.8]} 48. Kf1 {[%clk 0:00:16.9]}
48... f5 {[%clk 0:00:04.9]} 49. Rb7+ {[%clk 0:00:14.3]} 49... Kf6 {[%clk
0:00:04.6]} 50. Rb8 {[%clk 0:00:12.2]} 50... f4 {[%clk 0:00:04]} 51. Re8 {[%clk
0:00:10.9]} 51... Kf5 {[%clk 0:00:01.3]} 52. Re7 {[%clk 0:00:11.1]} 52... Kg4
{[%clk 0:00:01.5]} 53. Ke1 {[%clk 0:00:11.6]} 53... Kf3 {[%clk 0:00:01.9]} 54.
Kd1 {[%clk 0:00:12.2]} 54... e2+ {[%clk 0:00:02]} 55. Kc1 {[%clk 0:00:12.2]}
55... Kf2 {[%clk 0:00:02.2]} 56. a7 {[%clk 0:00:12.1]} 56... e1=Q+ {[%clk
0:00:01.6]} 57. Rxe1 {[%clk 0:00:12.1]} 57... Kxe1 {[%clk 0:00:02.2]} 58. b6
{[%clk 0:00:12.6]} 58... f3 {[%clk 0:00:02.6]} 59. b7 {[%clk 0:00:13]} 1-0

[Event "*** Titled Tuesday Blitz"]
[Site "Chess.com"]
[Date "2020.04.21"]
[Round "1"]
[White "Keks2017"]
[Black "AlexTriapishko"]
[Result "0-1"]
[WhiteElo "2396"]
[BlackElo "2763"]
[TimeControl "180+1"]
[EndTime "10:08:18 PDT"]
[Termination "AlexTriapishko won by checkmate"]

1. g3 {[%clk 0:02:58.9]} 1... Nf6 {[%clk 0:02:55.6]} 2. Bg2 {[%clk 0:02:58.8]}
2... g6 {[%clk 0:02:55.7]} 3. Nf3 {[%clk 0:02:57.9]} 3... Bg7 {[%clk 0:02:54.7]}
4. O-O {[%clk 0:02:57.7]} 4... O-O {[%clk 0:02:55.2]} 5. c4 {[%clk 0:02:57.5]}
5... c6 {[%clk 0:02:53.2]} 6. d4 {[%clk 0:02:56]} 6... d5 {[%clk 0:02:54.1]} 7.
cxd5 {[%clk 0:02:56]} 7... cxd5 {[%clk 0:02:55]} 8. Ne5 {[%clk 0:02:55.8]} 8...
Nc6 {[%clk 0:02:55.3]} 9. Nxc6 {[%clk 0:02:55.1]} 9... bxc6 {[%clk 0:02:55.3]}
10. Nc3 {[%clk 0:02:55.1]} 10... e6 {[%clk 0:02:52.2]} 11. b3 {[%clk 0:02:54.3]}
11... Ba6 {[%clk 0:02:48.6]} 12. Re1 {[%clk 0:02:52.9]} 12... Nd7 {[%clk
0:02:48.4]} 13. e3 {[%clk 0:02:44.9]} 13... Rc8 {[%clk 0:02:40.8]} 14. Ba3
{[%clk 0:02:40]} 14... Re8 {[%clk 0:02:36.4]} 15. Na4 {[%clk 0:02:39.3]} 15...
Qa5 {[%clk 0:02:13.4]} 16. Rc1 {[%clk 0:02:33.2]} 16... Bb5 {[%clk 0:02:12.3]}
17. Bf1 {[%clk 0:02:20]} 17... Bxa4 {[%clk 0:02:06.1]} 18. bxa4 {[%clk
0:02:15.6]} 18... Bf8 {[%clk 0:02:01.7]} 19. Bxf8 {[%clk 0:02:09.1]} 19... Rxf8
{[%clk 0:02:02.6]} 20. Rb1 {[%clk 0:01:55.3]} 20... Rb8 {[%clk 0:02:00.4]} 21.
Qc2 {[%clk 0:01:54.3]} 21... Rxb1 {[%clk 0:01:58]} 22. Rxb1 {[%clk 0:01:53.5]}
22... Rb8 {[%clk 0:01:58.6]} 23. Rxb8+ {[%clk 0:01:49.4]} 23... Nxb8 {[%clk
0:01:59.5]} 24. Qb3 {[%clk 0:01:49]} 24... Qc7 {[%clk 0:01:53]} 25. Qb4 {[%clk
0:01:44.5]} 25... Kg7 {[%clk 0:01:20.8]} 26. a5 {[%clk 0:01:42.3]} 26... c5
{[%clk 0:00:49.9]} 27. Qxc5 {[%clk 0:01:34]} 27... Qxc5 {[%clk 0:00:48.7]} 28.
dxc5 {[%clk 0:01:33.8]} 28... Kf6 {[%clk 0:00:44]} 29. Bb5 {[%clk 0:01:29.6]}
29... Ke7 {[%clk 0:00:38.9]} 30. Kf1 {[%clk 0:01:27.3]} 30... Kd8 {[%clk
0:00:24.5]} 31. Ke2 {[%clk 0:01:25.1]} 31... Nd7 {[%clk 0:00:24.9]} 32. c6
{[%clk 0:01:17.6]} 32... Nc5 {[%clk 0:00:18.7]} 33. a6 {[%clk 0:01:15.1]} 33...
Kc7 {[%clk 0:00:17.4]} 34. a4 {[%clk 0:01:12.8]} 34... Ne4 {[%clk 0:00:15.3]}
35. f3 {[%clk 0:01:10.3]} 35... Nc5 {[%clk 0:00:12.7]} 36. Kd2 {[%clk
0:01:09.3]} 36... Nb3+ {[%clk 0:00:12.8]} 37. Kc3 {[%clk 0:01:08.8]} 37... Na5
{[%clk 0:00:13.7]} 38. Kd4 {[%clk 0:01:03.3]} 38... Nxc6+ {[%clk 0:00:13.2]} 39.
Kd3 {[%clk 0:01:01]} 39... Kd6 {[%clk 0:00:10.7]} 40. f4 {[%clk 0:00:59.6]}
40... Kc5 {[%clk 0:00:09.1]} 41. g4 {[%clk 0:00:56.1]} 41... f6 {[%clk
0:00:08.7]} 42. h4 {[%clk 0:00:54]} 42... e5 {[%clk 0:00:08.7]} 43. g5 {[%clk
0:00:53.2]} 43... e4+ {[%clk 0:00:05.1]} 44. Kc3 {[%clk 0:00:53]} 44... fxg5
{[%clk 0:00:04.8]} 45. hxg5 {[%clk 0:00:51.9]} 45... d4+ {[%clk 0:00:05.4]} 46.
exd4+ {[%clk 0:00:49.6]} 46... Nxd4 {[%clk 0:00:06.3]} 47. Kd2 {[%clk
0:00:28.9]} 47... Nxb5 {[%clk 0:00:04.4]} 48. axb5 {[%clk 0:00:28.9]} 48... Kxb5
{[%clk 0:00:05.3]} 49. Ke3 {[%clk 0:00:29.1]} 49... Kxa6 {[%clk 0:00:05.8]} 50.
Kxe4 {[%clk 0:00:29.3]} 50... Kb6 {[%clk 0:00:06.1]} 51. f5 {[%clk 0:00:28.1]}
51... gxf5+ {[%clk 0:00:06.2]} 52. Kxf5 {[%clk 0:00:28.2]} 52... a5 {[%clk
0:00:07.1]} 53. Kf6 {[%clk 0:00:28.3]} 53... a4 {[%clk 0:00:07.5]} 54. Kg7
{[%clk 0:00:28.5]} 54... a3 {[%clk 0:00:08.3]} 55. Kxh7 {[%clk 0:00:28.6]} 55...
a2 {[%clk 0:00:09]} 56. g6 {[%clk 0:00:28.8]} 56... a1=Q {[%clk 0:00:09.9]} 57.
g7 {[%clk 0:00:28.9]} 57... Qh1+ {[%clk 0:00:10.8]} 58. Kg6 {[%clk 0:00:28.3]}
58... Qg2+ {[%clk 0:00:11.3]} 59. Kf7 {[%clk 0:00:28.3]} 59... Qf3+ {[%clk
0:00:11.7]} 60. Ke7 {[%clk 0:00:28.4]} 60... Qg4 {[%clk 0:00:11.9]} 61. Kf7
{[%clk 0:00:28.3]} 61... Qf5+ {[%clk 0:00:12.3]} 62. Ke7 {[%clk 0:00:28.3]}
62... Qg6 {[%clk 0:00:12.8]} 63. Kf8 {[%clk 0:00:28.3]} 63... Qf6+ {[%clk
0:00:13.3]} 64. Kg8 {[%clk 0:00:28.3]} 64... Kc7 {[%clk 0:00:13.8]} 65. Kh7
{[%clk 0:00:28.3]} 65... Qf5+ {[%clk 0:00:14.2]} 66. Kh8 {[%clk 0:00:28.1]}
66... Qh5+ {[%clk 0:00:14.3]} 67. Kg8 {[%clk 0:00:28.1]} 67... Kd7 {[%clk
0:00:15.2]} 68. Kf8 {[%clk 0:00:26.9]} 68... Qe8# {[%clk 0:00:16.1]} 0-1

[Event "*** Titled Tuesday Blitz"]
[Site "Chess.com"]
[Date "2020.04.21"]
[Round "1"]
[White "elisak43"]
[Black "JonahWillow"]
[Result "0-1"]
[WhiteElo "2398"]
[BlackElo "2764"]
[TimeControl "180+1"]
[EndTime "10:08:19 PDT"]
[Termination "JonahWillow won on time"]

1. e4 {[%clk 0:03:00.5]} 1... c5 {[%clk 0:02:59.5]} 2. Nf3 {[%clk 0:02:59.7]}
2... Nc6 {[%clk 0:02:59.3]} 3. Bb5 {[%clk 0:02:59.8]} 3... g6 {[%clk 0:02:58.7]}
4. c3 {[%clk 0:02:55.9]} 4... Nf6 {[%clk 0:02:58.2]} 5. Qe2 {[%clk 0:02:53]}
5... Bg7 {[%clk 0:02:55.6]} 6. O-O {[%clk 0:02:52.1]} 6... O-O {[%clk
0:02:55.5]} 7. d4 {[%clk 0:02:49.5]} 7... cxd4 {[%clk 0:02:56.4]} 8. cxd4 {[%clk
0:02:50.4]} 8... d6 {[%clk 0:02:57.1]} 9. d5 {[%clk 0:02:46.2]} 9... Nb8 {[%clk
0:02:54.7]} 10. Nc3 {[%clk 0:02:43.4]} 10... a6 {[%clk 0:02:51.5]} 11. Bd3
{[%clk 0:02:43.1]} 11... Bg4 {[%clk 0:02:52.1]} 12. h3 {[%clk 0:02:42.4]} 12...
Bxf3 {[%clk 0:02:52.5]} 13. Qxf3 {[%clk 0:02:43.3]} 13... Nbd7 {[%clk
0:02:53.1]} 14. Qe2 {[%clk 0:02:41.9]} 14... b5 {[%clk 0:02:50.2]} 15. a3 {[%clk
0:02:37]} 15... Rc8 {[%clk 0:02:47.5]} 16. Bf4 {[%clk 0:02:33.6]} 16... Nc5
{[%clk 0:02:44.8]} 17. Rac1 {[%clk 0:02:25]} 17... Qb6 {[%clk 0:02:39.7]} 18.
Be3 {[%clk 0:01:32.5]} 18... Qb8 {[%clk 0:02:35.4]} 19. f3 {[%clk 0:01:17.6]}
19... Nfd7 {[%clk 0:02:31]} 20. f4 {[%clk 0:01:01.7]} 20... Rc7 {[%clk
0:02:27.5]} 21. Kh2 {[%clk 0:01:01.5]} 21... Rfc8 {[%clk 0:02:27.3]} 22. g4
{[%clk 0:00:30.3]} 22... Nb3 {[%clk 0:02:16.7]} 23. Rcd1 {[%clk 0:00:27.6]}
23... Nb6 {[%clk 0:01:58.1]} 24. f5 {[%clk 0:00:19.5]} 24... Nc4 {[%clk
0:01:56.5]} 25. Bxc4 {[%clk 0:00:19]} 25... Rxc4 {[%clk 0:01:56.2]} 26. Qf3
{[%clk 0:00:17.7]} 26... Rf8 {[%clk 0:01:47.2]} 27. Bg5 {[%clk 0:00:17.3]} 27...
Nd4 {[%clk 0:01:43.7]} 28. Qe3 {[%clk 0:00:14.5]} 28... Qc7 {[%clk 0:01:40.7]}
29. Bh6 {[%clk 0:00:13.7]} 29... Nc2 {[%clk 0:01:27.5]} 30. Qd2 {[%clk
0:00:11.7]} 30... Nxa3 {[%clk 0:01:21.7]} 31. Bxg7 {[%clk 0:00:10.9]} 31... Kxg7
{[%clk 0:01:22.6]} 32. Qg5 {[%clk 0:00:08.2]} 32... Nc2 {[%clk 0:01:18.6]} 33.
f6+ {[%clk 0:00:08.2]} 33... exf6 {[%clk 0:01:19.5]} 34. Qxf6+ {[%clk
0:00:09.1]} 34... Kg8 {[%clk 0:01:20.1]} 35. e5 {[%clk 0:00:07.7]} 35... Ne3
{[%clk 0:01:15.7]} 36. e6 {[%clk 0:00:06.9]} 36... Nxf1+ {[%clk 0:01:12.8]} 37.
Rxf1 {[%clk 0:00:07.8]} 37... b4 {[%clk 0:00:19.4]} 38. e7 {[%clk 0:00:07.3]}
38... Qc8 {[%clk 0:00:19.8]} 39. exf8=Q+ {[%clk 0:00:03.8]} 39... Qxf8 {[%clk
0:00:20.7]} 40. Ne2 {[%clk 0:00:03.2]} 40... Rc2 {[%clk 0:00:19.2]} 41. Rf2
{[%clk 0:00:03.6]} 41... Qe8 {[%clk 0:00:19.4]} 42. Ng3 {[%clk 0:00:03.7]} 42...
Rxf2+ {[%clk 0:00:17.5]} 43. Qxf2 {[%clk 0:00:04.6]} 43... Qe5 {[%clk 0:00:18]}
44. Qd2 {[%clk 0:00:04.9]} 44... a5 {[%clk 0:00:16]} 45. Kg2 {[%clk 0:00:04.8]}
45... Kg7 {[%clk 0:00:16.6]} 46. Ne2 {[%clk 0:00:03.8]} 46... a4 {[%clk
0:00:15.6]} 47. Qd4 {[%clk 0:00:04]} 47... Qxd4 {[%clk 0:00:14.3]} 48. Nxd4
{[%clk 0:00:04.9]} 48... a3 {[%clk 0:00:15.2]} 49. bxa3 {[%clk 0:00:04.9]} 49...
bxa3 {[%clk 0:00:16.1]} 50. g5 {[%clk 0:00:04.2]} 50... a2 {[%clk 0:00:16.3]}
51. Nb3 {[%clk 0:00:03.2]} 51... f6 {[%clk 0:00:16.8]} 52. h4 {[%clk 0:00:03.3]}
52... h6 {[%clk 0:00:14.8]} 53. Kf3 {[%clk 0:00:01.7]} 53... fxg5 {[%clk
0:00:13]} 54. hxg5 {[%clk 0:00:02.6]} 54... h5 {[%clk 0:00:13.3]} 55. Kf4 {[%clk
0:00:02.8]} 55... Kf7 {[%clk 0:00:13.5]} 56. Ke4 {[%clk 0:00:03]} 56... Ke7
{[%clk 0:00:13.1]} 57. Kd3 {[%clk 0:00:03.4]} 57... Kd7 {[%clk 0:00:12.1]} 58.
Kc3 {[%clk 0:00:03.3]} 58... h4 {[%clk 0:00:09]} 59. Kb2 {[%clk 0:00:02.6]}
59... h3 {[%clk 0:00:09.9]} 0-1

[Event "*** Titled Tuesday Blitz"]
[Site "Chess.com"]
[Date "2020.04.21"]
[Round "1"]
[White "Andrii_Prydun"]
[Black "SketchyMoves"]
[Result "0-1"]
[WhiteElo "2347"]
[BlackElo "2672"]
[TimeControl "180+1"]
[EndTime "10:08:20 PDT"]
[Termination "SketchyMoves won by resignation"]

1. d4 {[%clk 0:03:00.9]} 1... e6 {[%clk 0:02:59.6]} 2. e4 {[%clk 0:02:48.4]}
2... d5 {[%clk 0:02:59]} 3. exd5 {[%clk 0:02:46.2]} 3... exd5 {[%clk 0:02:58.8]}
4. Bd3 {[%clk 0:02:45.7]} 4... Bd6 {[%clk 0:02:58.8]} 5. Ne2 {[%clk 0:02:43.6]}
5... Qf6 {[%clk 0:02:54.4]} 6. Nbc3 {[%clk 0:02:30.4]} 6... Ne7 {[%clk 0:02:54]}
7. Be3 {[%clk 0:02:28.2]} 7... a6 {[%clk 0:02:50.7]} 8. Qd2 {[%clk 0:02:23.3]}
8... h6 {[%clk 0:02:46.8]} 9. Bf4 {[%clk 0:02:21.4]} 9... Nbc6 {[%clk 0:02:43]}
10. Bxd6 {[%clk 0:02:15.2]} 10... Qxd6 {[%clk 0:02:43.9]} 11. O-O-O {[%clk
0:02:15]} 11... Nb4 {[%clk 0:02:32.6]} 12. Ng3 {[%clk 0:01:59.5]} 12... Nxd3+
{[%clk 0:02:27.6]} 13. Qxd3 {[%clk 0:01:59.7]} 13... Be6 {[%clk 0:02:24.4]} 14.
Rde1 {[%clk 0:01:31.3]} 14... O-O {[%clk 0:02:19.1]} 15. Re2 {[%clk 0:01:15.6]}
15... b5 {[%clk 0:02:12.3]} 16. Rhe1 {[%clk 0:01:07.7]} 16... c5 {[%clk
0:02:11.4]} 17. dxc5 {[%clk 0:01:02.3]} 17... Qxc5 {[%clk 0:02:12.3]} 18. Re5
{[%clk 0:00:59]} 18... Qxf2 {[%clk 0:02:06.4]} 19. R5e2 {[%clk 0:00:42.2]} 19...
Qf4+ {[%clk 0:02:04.8]} 20. Qd2 {[%clk 0:00:41.6]} 20... Qb4 {[%clk 0:01:53.7]}
21. Nd1 {[%clk 0:00:29.3]} 21... Qd6 {[%clk 0:01:48.9]} 22. Qd4 {[%clk
0:00:25.5]} 22... Rac8 {[%clk 0:01:41]} 23. Nh5 {[%clk 0:00:25.1]} 23... Nf5
{[%clk 0:01:36.4]} 24. Qf4 {[%clk 0:00:25.1]} 24... d4 {[%clk 0:01:10.5]} 25.
Qxd6 {[%clk 0:00:24.5]} 25... Nxd6 {[%clk 0:01:10.7]} 26. Nf4 {[%clk 0:00:24.7]}
26... Bf5 {[%clk 0:00:58.7]} 27. Rd2 {[%clk 0:00:20]} 27... Rfd8 {[%clk
0:00:50.2]} 28. Re5 {[%clk 0:00:15]} 28... Bh7 {[%clk 0:00:45.3]} 29. Rd5 {[%clk
0:00:14.5]} 29... Nf5 {[%clk 0:00:35.2]} 30. Rxd8+ {[%clk 0:00:08.6]} 30... Rxd8
{[%clk 0:00:36.1]} 31. Ne2 {[%clk 0:00:06.5]} 31... Rc8 {[%clk 0:00:29.2]} 32.
g4 {[%clk 0:00:06.1]} 32... Ne3 {[%clk 0:00:28.4]} 33. Nxd4 {[%clk 0:00:05.8]}
33... Nxg4 {[%clk 0:00:23.6]} 34. c3 {[%clk 0:00:06.1]} 34... Ne5 {[%clk
0:00:22.8]} 35. b3 {[%clk 0:00:03.7]} 35... Nd3+ {[%clk 0:00:21.5]} 36. Kc2
{[%clk 0:00:04.1]} 36... Nf2+ {[%clk 0:00:18]} 37. Kb2 {[%clk 0:00:04]} 37...
Nxd1+ {[%clk 0:00:17.4]} 38. Rxd1 {[%clk 0:00:04.9]} 38... g5 {[%clk 0:00:16.2]}
39. Ne2 {[%clk 0:00:03.7]} 39... Rc6 {[%clk 0:00:12.1]} 40. Rd8+ {[%clk
0:00:03.2]} 40... Kg7 {[%clk 0:00:12.2]} 41. Nd4 {[%clk 0:00:03.5]} 41... Rf6
{[%clk 0:00:08.9]} 42. h3 {[%clk 0:00:03.9]} 42... Rf2+ {[%clk 0:00:08.6]} 43.
Ka3 {[%clk 0:00:03.9]} 43... Bb1 {[%clk 0:00:07.6]} 44. Rd6 {[%clk 0:00:03]}
44... Rxa2+ {[%clk 0:00:07]} 45. Kb4 {[%clk 0:00:03.5]} 45... h5 {[%clk
0:00:06.8]} 46. Rd5 {[%clk 0:00:03.3]} 46... Kg6 {[%clk 0:00:05.9]} 47. Nc6
{[%clk 0:00:03.8]} 47... f6 {[%clk 0:00:05.3]} 48. Rd6 {[%clk 0:00:04]} 48... g4
{[%clk 0:00:04.7]} 49. Ne5+ {[%clk 0:00:04.3]} 49... Kf5 {[%clk 0:00:04.9]} 50.
Nf7 {[%clk 0:00:02.7]} 50... gxh3 {[%clk 0:00:04.1]} 51. Rd1 {[%clk 0:00:01.9]}
51... h2 {[%clk 0:00:03.6]} 52. Rxb1 {[%clk 0:00:01.4]} 52... Rg2 {[%clk
0:00:02.6]} 53. Rh1 {[%clk 0:00:02.3]} 53... h4 {[%clk 0:00:02.9]} 54. Nd6+
{[%clk 0:00:01.8]} 54... Kf4 {[%clk 0:00:03.3]} 55. Nf7 {[%clk 0:00:01.8]} 55...
Kg3 {[%clk 0:00:03.7]} 56. Nd6 {[%clk 0:00:01.6]} 56... Rg1 {[%clk 0:00:04.1]}
57. Ne4+ {[%clk 0:00:02.5]} 57... Kg2 {[%clk 0:00:04.6]} 58. Rxh2+ {[%clk
0:00:02.7]} 58... Kxh2 {[%clk 0:00:05.5]} 59. Nxf6 {[%clk 0:00:02.6]} 59... Kg2
{[%clk 0:00:04.7]} 60. Nd5 {[%clk 0:00:02.3]} 60... h3 {[%clk 0:00:05.6]} 61.
Nf4+ {[%clk 0:00:02.6]} 61... Kg3 {[%clk 0:00:06.1]} 62. Nxh3 {[%clk 0:00:03.5]}
62... Kxh3 {[%clk 0:00:06.8]} 63. Ka5 {[%clk 0:00:04.3]} 63... Rb1 {[%clk
0:00:06.6]} 0-1

[Event "*** Titled Tuesday Blitz"]
[Site "Chess.com"]
[Date "2020.04.21"]
[Round "1"]
[White "Dinamo81"]
[Black "Shuvatkin_Vladimir"]
[Result "1-0"]
[WhiteElo "2623"]
[BlackElo "2292"]
[TimeControl "180+1"]
[EndTime "10:08:20 PDT"]
[Termination "Dinamo81 won by resignation"]

1. d4 {[%clk 0:03:00.9]} 1... Nf6 {[%clk 0:02:58.4]} 2. Bf4 {[%clk 0:02:59.8]}
2... g6 {[%clk 0:02:57.5]} 3. Nc3 {[%clk 0:02:58.6]} 3... d5 {[%clk 0:02:56.8]}
4. e3 {[%clk 0:02:58.3]} 4... Bg7 {[%clk 0:02:57]} 5. h4 {[%clk 0:02:58.9]} 5...
h5 {[%clk 0:02:55.8]} 6. Nf3 {[%clk 0:02:58.1]} 6... O-O {[%clk 0:02:55.3]} 7.
Be2 {[%clk 0:02:56.2]} 7... b6 {[%clk 0:02:54.9]} 8. Ne5 {[%clk 0:02:55.7]} 8...
c5 {[%clk 0:02:52.7]} 9. g4 {[%clk 0:02:52.5]} 9... Nxg4 {[%clk 0:02:38.5]} 10.
Nxg4 {[%clk 0:02:41.3]} 10... Bxg4 {[%clk 0:02:35.2]} 11. Bxg4 {[%clk
0:02:41.5]} 11... hxg4 {[%clk 0:02:29.8]} 12. Qxg4 {[%clk 0:02:37]} 12... cxd4
{[%clk 0:02:21.8]} 13. exd4 {[%clk 0:02:32.3]} 13... Qd7 {[%clk 0:02:19.7]} 14.
Qxd7 {[%clk 0:02:09.1]} 14... Nxd7 {[%clk 0:02:18]} 15. Nxd5 {[%clk 0:02:09.8]}
15... Bxd4 {[%clk 0:02:08.5]} 16. Nxe7+ {[%clk 0:02:05.8]} 16... Kg7 {[%clk
0:02:05.6]} 17. O-O-O {[%clk 0:02:03.4]} 17... Be5 {[%clk 0:01:55.1]} 18. Bxe5+
{[%clk 0:01:38.4]} 18... Nxe5 {[%clk 0:01:55.1]} 19. h5 {[%clk 0:01:37.6]} 19...
Rfe8 {[%clk 0:01:48.8]} 20. h6+ {[%clk 0:01:26.3]} 20... Kh8 {[%clk 0:01:46.8]}
21. Nd5 {[%clk 0:01:27.2]} 21... Ng4 {[%clk 0:01:37]} 22. Rd2 {[%clk 0:01:25]}
22... Rad8 {[%clk 0:01:34]} 23. f3 {[%clk 0:01:22.8]} 23... Ne5 {[%clk
0:01:25.5]} 24. Rh3 {[%clk 0:01:07]} 24... Nc4 {[%clk 0:01:22]} 25. Rd1 {[%clk
0:01:07.3]} 25... Re5 {[%clk 0:00:57.6]} 26. Nc3 {[%clk 0:01:06.3]} 26... Rxd1+
{[%clk 0:00:52.7]} 27. Nxd1 {[%clk 0:01:06.5]} 27... Re1 {[%clk 0:00:51.9]} 28.
f4 {[%clk 0:01:06.7]} 28... Rf1 {[%clk 0:00:48.7]} 29. b3 {[%clk 0:01:02.4]}
29... Nb2 {[%clk 0:00:33.8]} 30. Kxb2 {[%clk 0:01:01.4]} 30... Rxd1 {[%clk
0:00:34]} 31. f5 {[%clk 0:00:59.7]} 31... gxf5 {[%clk 0:00:31.8]} 32. Rf3 {[%clk
0:00:52.8]} 32... Rd5 {[%clk 0:00:31.4]} 33. c4 {[%clk 0:00:52.1]} 33... Re5
{[%clk 0:00:31.7]} 34. Kc3 {[%clk 0:00:51.9]} 34... Kh7 {[%clk 0:00:32.1]} 35.
Rh3 {[%clk 0:00:50.9]} 35... f4 {[%clk 0:00:31.7]} 36. Kd4 {[%clk 0:00:51]}
36... Ra5 {[%clk 0:00:31]} 37. Rh2 {[%clk 0:00:48]} 37... f3 {[%clk 0:00:29.7]}
38. Ke3 {[%clk 0:00:47.1]} 38... Rf5 {[%clk 0:00:30]} 39. b4 {[%clk 0:00:43.6]}
39... a5 {[%clk 0:00:24.5]} 40. a3 {[%clk 0:00:42.3]} 40... axb4 {[%clk
0:00:24.9]} 41. axb4 {[%clk 0:00:43.2]} 41... Rg5 {[%clk 0:00:19.8]} 42. Kxf3
{[%clk 0:00:40.9]} 42... f5 {[%clk 0:00:19.1]} 43. c5 {[%clk 0:00:27.9]} 43...
bxc5 {[%clk 0:00:17.4]} 44. bxc5 {[%clk 0:00:28.8]} 44... Rg6 {[%clk 0:00:14.9]}
45. Rc2 {[%clk 0:00:25.6]} 45... Rc6 {[%clk 0:00:12.3]} 46. Kf4 {[%clk
0:00:26.2]} 46... Kxh6 {[%clk 0:00:10.9]} 47. Kxf5 {[%clk 0:00:26.4]} 47... Kg7
{[%clk 0:00:10.2]} 48. Ke5 {[%clk 0:00:26.7]} 48... Kf7 {[%clk 0:00:10.4]} 49.
Kd5 {[%clk 0:00:27.2]} 49... Rc8 {[%clk 0:00:10.6]} 50. Re2 {[%clk 0:00:24.4]}
50... Rd8+ {[%clk 0:00:08.9]} 51. Kc6 {[%clk 0:00:24.1]} 51... Rc8+ {[%clk
0:00:08.9]} 52. Kd6 {[%clk 0:00:23.9]} 52... Rd8+ {[%clk 0:00:08.2]} 53. Kc7
{[%clk 0:00:24]} 53... Rd5 {[%clk 0:00:08.1]} 54. c6 {[%clk 0:00:24.2]} 54...
Rd1 {[%clk 0:00:07.8]} 55. Kc8 {[%clk 0:00:23.7]} 55... Rc1 {[%clk 0:00:04.7]}
56. c7 {[%clk 0:00:23.6]} 56... Rb1 {[%clk 0:00:04.5]} 57. Re4 {[%clk 0:00:22]}
57... Rd1 {[%clk 0:00:03.5]} 58. Rb4 {[%clk 0:00:20]} 58... Rc1 {[%clk
0:00:03.4]} 59. Kb7 {[%clk 0:00:19.9]} 1-0